bitfinex/quotes_ETHUSD_20240820
["timestamp","ask_amount","ask_price","bid_price","bid_amount"]
[1724153059121,1.598,2652.7,2652.2,2.3612]
[1724153059691,1.598,2652.9,2652.2,3.351443]
[1724153060010,1.598,2652.9,2652.3,3.8456379]
[1724153060325,1.598,2652.9,2652.4,2.3553]
[1724153061113,1.598,2652.7,2652.2,3.324143]
[1724153061322,1.598,2652.7,2652.2,2.3339]
[1724153062630,2.3929,2652.0,2651.2,4.45981435]
[1724153062948,2.3929,2652.0,2651.4,2.4906]
[1724153062949,1.598,2652.0,2651.4,2.4906]
[1724153063226,1.598,2652.0,2651.5,0.24906]
[1724153064001,5.36874,2652.0,2651.4,2.4906]
[1724153064535,1.598,2652.0,2651.4,2.4906]
[1724153066512,1.598,2652.0,2651.5,3.77144]
[1724153066710,1.598,2652.2,2651.6,2.3752]
[1724153067017,1.598,2652.2,2651.6,2.989864]
[1724153067808,1.598,2652.2,2651.7,35.0]
[1724153068196,4.94586553,2652.5,2651.8,2.3752]
[1724153068415,1.598,2652.3,2651.8,2.3752]
[1724153068616,1.598,2652.3,2651.9,0.614635]
[1724153068935,1.598,2652.3,2651.9,35.0]
[1724153069928,1.598,2652.3,2651.8,2.3752]
[1724153070115,4.94570553,2652.6,2651.8,2.3752]
[1724153070316,3.77007,2652.5,2651.8,2.3752]
[1724153070529,3.77007,2652.5,2651.9,35.614629]
[1724153071111,3.77007,2652.5,2651.9,0.614629]
[1724153071452,3.77007,2652.5,2652.0,37.2901]
[1724153072235,3.77007,2652.5,2652.0,2.2901]
[1724153073338,3.76979,2652.7,2652.0,2.2901]
[1724153073654,3.76979,2652.7,2652.2,2.2901]
[1724153074638,5.3676,2652.8,2652.2,2.2901]
[1724153074843,1.598,2652.8,2652.2,2.2901]
[1724153075042,5.36761,2652.8,2652.2,2.2901]
[1724153075223,1.598,2652.8,2652.3,0.60254155]
[1724153075424,1.598,2652.8,2652.4,2.3347]
[1724153076219,6.54312553,2653.0,2652.4,2.3347]
[1724153077113,3.76946,2652.9,2652.4,2.3347]
[1724153078219,6.54312553,2653.0,2652.4,2.3347]
[1724153078529,6.54312553,2653.0,2652.4,2.41009619]
[1724153078727,6.54312553,2653.0,2652.5,2.3557]
[1724153078967,5.36732,2653.0,2652.5,2.3557]
[1724153080228,1.598,2652.8,2652.5,2.3557]
[1724153085145,5.36762,2652.8,2652.2,37.4368]
[1724153085350,3.76974,2652.7,2652.2,2.4368]
[1724153086679,5.36796,2652.6,2652.2,2.4368]
[1724153086879,3.77031,2652.3,2651.9,2.436]
[1724153087243,1.598,2652.2,2651.9,2.436]
[1724153087549,5.36853,2652.2,2651.7,7.31]
[1724153088252,1.598,2652.2,2651.7,7.31]
[1724153089348,5.36847,2652.2,2651.7,7.31]
[1724153090385,5.36847,2652.2,2651.6,2.436]
[1724153090587,1.598,2652.2,2651.6,7.09625095]
[1724153090786,1.598,2652.2,2651.7,38.77107]
[1724153091574,1.598,2652.4,2651.8,6.06721]
[1724153092008,1.598,2652.4,2651.8,2.2962]
[1724153092185,5.36818,2652.4,2651.9,35.0]
[1724153092985,6.282002,2652.4,2651.9,35.0]
[1724153093577,1.598,2652.2,2651.6,2.3419]
[1724153094025,1.598,2652.2,2651.7,35.0]
[1724153094425,2.511822,2652.4,2651.8,2.3419]
[1724153094635,1.598,2652.4,2651.8,2.3419]
[1724153094793,1.598,2652.4,2651.8,6.11285]
[1724153097385,1.598,2652.4,2651.8,2.3419]
[1724153097544,1.598,2652.2,2651.7,35.0]
[1724153098145,3.8512,2652.2,2651.6,6.14551]
[1724153098510,3.8512,2652.4,2651.7,2.3743]
[1724153098844,7.6214,2652.4,2651.7,37.3743]
[1724153099556,1.598,2652.2,2651.7,2.3743]
[1724153100794,1.598,2652.0,2651.5,6.07474]
[1724153101045,1.598,2652.0,2651.5,2.3033]
[1724153101248,1.598,2652.0,2651.5,37.3033]
[1724153101545,1.598,2652.0,2651.5,41.07473]
[1724153102014,5.36879,2652.0,2651.5,37.3033]
[1724153102215,5.36879,2652.0,2651.5,2.3033]
[1724153102414,1.598,2652.0,2651.5,2.3033]
[1724153103266,6.08379,2652.1,2651.5,2.3033]
[1724153103569,1.598,2652.2,2651.6,3.7713]
[1724153104041,1.598,2652.2,2651.6,38.7713]
[1724153104416,1.598,2652.2,2651.6,35.0]
[1724153104619,5.36854,2652.2,2651.5,2.3033]
[1724153104930,7.74859,2652.0,2651.5,2.3033]
[1724153105132,3.9778,2652.0,2651.5,2.3033]
[1724153105333,3.9778,2652.0,2651.3,41.14472]
[1724153106126,2.3798,2652.0,2651.3,41.14472]
[1724153106324,3.9778,2652.0,2651.3,41.14472]
[1724153106520,3.9778,2652.0,2651.3,44.88003554]
[1724153106720,3.9778,2652.0,2651.4,1.31084558]
[1724153107095,3.9778,2652.0,2651.3,44.87997554]
[1724153107358,3.9778,2652.0,2651.3,41.14473]
[1724153107707,3.9778,2652.0,2651.4,3.77152]
[1724153110246,3.9778,2652.0,2651.5,3.77142]
[1724153111819,4.0636,2652.2,2651.6,3.77119]
[1724153112345,4.0636,2652.2,2651.7,3.77115]
[1724153112943,1.598,2652.0,2651.4,2.3507]
[1724153113158,1.598,2652.0,2651.4,6.12222]
[1724153113772,7.019527,2652.2,2651.4,6.12222]
[1724153113773,4.846977,2652.2,2651.5,3.77144]
[1724153113980,1.598,2652.2,2651.7,3.77108]
[1724153114149,0.765187,2652.2,2651.7,3.77108]
[1724153114354,2.2837,2652.4,2651.7,3.77108]
[1724153114547,1.598,2652.3,2651.6,2.2522]
[1724153114745,1.598,2652.3,2651.7,3.77109]
[1724153115054,1.598,2652.3,2651.7,3.77107]
[1724153115453,2.2837,2652.4,2651.9,3.77087]
[1724153115630,1.56763429,2652.8,2652.3,3.77029]
[1724153115836,1.56763429,2652.8,2651.9,0.754194]
[1724153115837,2.4346,2653.0,2652.5,3.77002]
[1724153116081,4.0326,2653.0,2652.4,2.3649]
[1724153116303,0.40326,2652.9,2652.3,3.77018]
[1724153116503,1.598,2652.8,2652.2,9.7412]
[1724153116722,5.36796,2652.6,2652.2,7.31]
[1724153116851,2.41,2652.7,2652.2,7.31]
[1724153116852,2.41,2652.3,2652.2,7.31]
[1724153117051,3.187811,2652.3,2651.6,3.21888574]
[1724153117303,3.187811,2652.3,2651.7,1.31064908]
[1724153117786,1.598,2652.2,2651.6,8.16843363]
[1724153117986,1.598,2652.2,2651.7,1.31067204]
[1724153118288,1.598,2652.2,2651.6,4.39720807]
[1724153118289,1.598,2652.2,2651.6,4.39727775]
[1724153118491,2.4536131,2652.2,2651.5,11.08131]
[1724153118690,2.4536131,2652.2,2651.6,3.27686073]
[1724153119086,2.4536131,2652.2,2651.6,7.04816073]
[1724153119303,2.4536131,2652.2,2651.6,1.96611644]
[1724153119479,3.9205,2652.0,2651.4,0.78768574]
[1724153119798,3.9205,2652.0,2651.4,3.277089]
[1724153120122,2.4117,2651.4,2650.8,20.43768574]
[1724153120391,1.598,2651.5,2650.6,0.78768574]
[1724153120392,1.598,2650.9,2650.6,0.78768574]
[1724153120594,1.598,2650.9,2650.4,7.31]
[1724153120595,2.3474,2651.0,2650.4,7.31]
[1724153120957,2.3474,2651.0,2650.4,11.4764306]
[1724153121265,2.3474,2651.0,2650.4,14.47393723]
[1724153121467,3.8555,2651.3,2650.4,14.08040663]
[1724153121795,3.8555,2651.3,2650.6,6.21342]
[1724153122292,2.2575,2651.3,2650.6,6.21331]
[1724153122595,2.4141,2651.5,2650.8,3.77234]
[1724153122957,2.65551,2651.5,2650.8,3.77234]
[1724153123352,2.4141,2651.5,2650.8,3.77234]
[1724153123855,2.4141,2651.5,2650.6,6.21338]
[1724153123856,2.4141,2651.5,2650.6,9.98599]
[1724153124055,6.1856,2651.5,2650.6,6.21331]
[1724153125010,2.4141,2651.5,2650.8,3.77242]
[1724153125318,2.4141,2651.5,2650.8,3.77234]
[1724153125473,3.332628,2651.5,2650.6,6.21334]
[1724153125671,3.332628,2651.5,2650.7,3.77249]
[1724153125877,3.332628,2651.5,2650.6,6.21334]
[1724153125878,2.3842,2651.7,2650.9,3.77218]
[1724153126201,3.77131,2651.6,2650.8,7.31]
[1724153126614,3.77131,2651.6,2650.8,11.08242]
[1724153126777,2.3842,2651.7,2650.9,3.77219]
[1724153126983,0.615528,2651.6,2650.9,3.77219]
[1724153127315,0.615528,2651.6,2651.0,3.77213]
[1724153127916,0.615528,2651.6,2650.8,11.08233]
[1724153128111,4.386838,2651.6,2650.8,11.08233]
[1724153128417,0.615528,2651.6,2650.8,12.434633]
[1724153128580,0.615528,2651.6,2651.0,3.77215]
[1724153129426,2.3842,2651.7,2651.0,6.08955]
[1724153129597,2.3842,2651.7,2651.0,9.86162]
[1724153129924,2.3842,2651.7,2651.0,6.08947]
[1724153130259,3.77055,2652.2,2651.4,3.7715]
[1724153130466,9.9294,2652.2,2651.4,2.4457]
[1724153130681,3.77074,2652.0,2651.4,2.4457]
[1724153130981,3.77061,2652.1,2651.4,2.4457]
[1724153131708,3.77075,2652.0,2651.2,6.12023]
[1724153131889,2.2684,2651.9,2651.1,7.31]
[1724153132596,3.77103,2651.8,2651.1,7.31]
[1724153133675,3.77125,2651.7,2651.1,7.31]
[1724153133883,0.754228,2651.6,2651.1,7.31]
[1724153134116,0.754228,2651.6,2650.9,14.6885]
[1724153134634,3.77103,2651.8,2651.0,3.77215]
[1724153134814,7.54214,2651.8,2651.0,3.77215]
[1724153135039,3.77126,2651.7,2650.9,14.6885]
[1724153135762,3.77103,2651.8,2650.9,12.34]
[1724153135763,2.2729,2651.5,2650.9,12.34]
[1724153135904,0.604422,2651.4,2650.9,12.34]
[1724153136103,2.2729,2651.5,2650.9,12.34]
[1724153137955,2.2729,2651.5,2650.8,11.08234]
[1724153138504,2.4884,2651.4,2650.4,22.1339]
[1724153138713,2.4884,2651.2,2650.4,7.31]
[1724153139026,6.2604,2651.2,2650.5,2.3498]
[1724153139254,10.0324,2651.2,2650.5,2.3498]
[1724153139419,6.2604,2651.2,2650.5,2.3498]
[1724153139755,7.27983,2651.2,2650.5,2.3498]
[1724153140308,3.77202,2651.1,2650.5,2.3498]
[1724153140502,6.2604,2651.2,2650.5,2.3498]
[1724153141241,3.772,2651.2,2650.5,2.3498]
[1724153141410,3.772,2651.2,2650.6,0.07544704]
[1724153141753,3.772,2651.2,2650.5,2.3498]
[1724153141962,3.772,2651.2,2650.6,1.41872697]
[1724153142102,9.53615,2651.4,2650.6,1.34328]
[1724153142103,6.15225,2651.4,2650.6,1.34328]
[1724153142306,3.77165,2651.4,2650.8,2.4332]
[1724153142562,3.77145,2651.5,2650.8,3.18811]
[1724153142774,3.77145,2651.5,2650.8,2.4332]
[1724153143476,3.77134,2651.6,2650.8,2.4332]
[1724153143629,7.54275,2651.6,2650.8,2.4332]
[1724153143833,3.77134,2651.6,2650.9,2.4332]
[1724153144143,3.77134,2651.6,2651.0,0.620563]
[1724153144346,3.77109,2651.8,2651.0,0.620563]
[1724153144656,3.7713,2651.6,2651.0,0.620563]
[1724153144967,2.4865,2651.5,2650.7,9.6761]
[1724153145485,3.77181,2651.3,2650.7,9.6761]
[1724153147667,3.77168,2651.4,2650.7,9.6761]
[1724153148847,7.54338,2651.4,2650.7,9.6761]
[1724153149186,3.77173,2651.3,2650.8,1.101938]
[1724153149476,3.7716,2651.4,2650.8,1.101938]
[1724153150035,3.77181,2651.3,2650.8,1.101938]
[1724153150241,3.77187,2651.2,2650.7,9.6761]
[1724153150442,7.54385,2651.2,2650.7,9.6761]
[1724153150650,3.77187,2651.2,2650.7,9.6761]
[1724153150978,3.77209,2651.1,2650.7,2.3661]
[1724153151178,4.526473,2651.1,2650.7,2.3661]
[1724153151495,3.77209,2651.1,2650.7,2.3661]
[1724153152458,3.77216,2651.0,2650.4,2.4316]
[1724153154777,3.77209,2651.1,2650.4,2.4316]
[1724153155011,7.5442,2651.1,2650.4,2.4316]
[1724153155289,3.77209,2651.1,2650.5,1.35147]
[1724153157785,7.54418,2651.1,2650.5,1.35147]
[1724153158362,3.77219,2651.0,2650.4,2.4316]
[1724153158592,3.77181,2651.3,2650.2,0.00351026]
[1724153158593,3.77273,2650.6,2650.2,0.00351026]
[1724153158799,3.77287,2650.5,2650.2,0.00351026]
[1724153159107,3.77246,2650.8,2650.3,2.3401]
[1724153159754,9.24045,2651.0,2650.3,2.3401]
[1724153159995,3.924045,2651.0,2650.3,2.3401]
[1724153160167,3.77216,2651.0,2650.3,2.3401]
[1724153160367,3.77233,2650.9,2650.3,2.3401]
[1724153160689,7.54441,2651.0,2650.3,2.3401]
[1724153160899,3.77216,2651.0,2650.3,2.3401]
[1724153161104,6.22957,2651.2,2650.4,0.61168903]
[1724153161284,3.77197,2651.2,2650.5,2.3057]
[1724153161453,2.2862,2651.5,2650.6,3.77266]
[1724153161657,2.2862,2651.5,2650.7,2.3057]
[1724153161658,3.7716,2651.4,2650.7,2.3057]
[1724153161859,2.2862,2651.7,2650.7,2.913536]
[1724153162289,1.56763429,2652.2,2651.5,3.77142]
[1724153162469,1.95531685,2652.3,2651.5,3.77142]
[1724153162470,3.7704,2652.3,2651.6,2.75826012]
[1724153162659,3.7704,2652.3,2651.6,2.682842]
[1724153162660,3.77046,2652.2,2651.6,2.682842]
[1724153163166,3.7704,2652.3,2651.6,2.3057]
[1724153163377,6.05629,2652.5,2651.6,6.07699]
[1724153163578,6.05629,2652.5,2651.6,2.3057]
[1724153163579,3.77031,2652.3,2651.6,2.3057]
[1724153164700,3.77024,2652.4,2651.6,6.07699]
[1724153164887,3.77024,2652.4,2651.6,7.061835]
[1724153165074,3.77024,2652.4,2651.6,7.13725236]
[1724153165475,3.77024,2652.4,2651.6,3.290545]
[1724153166403,3.77033,2652.3,2651.6,3.290545]
[1724153167265,3.77024,2652.4,2651.6,7.061735]
[1724153167464,3.76993,2652.6,2651.7,4.92986821]
[1724153167704,3.0,2652.5,2651.7,4.92986821]
[1724153168109,3.0,2652.5,2651.7,4.8544545]
[1724153168677,3.0,2652.5,2651.7,1.0833045]
[1724153168881,3.77017,2652.4,2651.7,1.0833045]
[1724153169773,3.0,2652.5,2651.7,4.8544145]
[1724153169978,3.0,2652.5,2651.9,2.3508]
[1724153170223,3.77003,2652.5,2651.9,2.3508]
[1724153171043,3.0,2652.8,2651.9,2.3508]
[1724153171176,3.7694,2653.0,2652.2,2.4872]
[1724153171376,0.37694,2652.9,2652.2,2.4872]
[1724153172847,3.76962,2652.8,2652.2,2.4872]
[1724153174608,3.76962,2652.8,2652.2,3.49322023]
[1724153175509,7.53884,2653.0,2652.2,3.49322023]
[1724153175853,3.76939,2653.0,2652.2,7.26366023]
[1724153176345,3.7692,2653.1,2652.4,2.324]
[1724153176554,3.76931,2653.0,2652.4,3.41107502]
[1724153176909,3.76912,2653.2,2652.4,3.41107502]
[1724153177157,3.76925,2653.1,2652.4,3.41107502]
[1724153179406,3.76932,2653.0,2652.4,3.41107502]
[1724153179607,3.76932,2653.0,2652.5,0.7181305]
[1724153180356,3.76932,2653.0,2652.4,2.324]
[1724153181515,3.76918,2653.1,2652.4,2.324]
[1724153181758,3.76918,2653.1,2652.4,6.09416]
[1724153182054,3.76918,2653.1,2652.5,2.409]
[1724153183119,3.76918,2653.1,2652.5,37.409]
[1724153183321,3.76918,2653.1,2652.6,3.73531554]
[1724153183555,3.76903,2653.2,2652.6,3.73531554]
[1724153183895,6.76847,2653.6,2652.8,3.7695]
[1724153184158,3.76847,2653.6,2652.9,2.86383]
[1724153184528,3.76866,2653.5,2652.9,2.86383]
[1724153185271,3.76866,2653.5,2652.9,2.2608]
[1724153186131,3.76877,2653.4,2652.9,2.2608]
[1724153186338,3.76861,2653.5,2652.9,2.2608]
[1724153186741,3.76847,2653.6,2652.9,2.2608]
[1724153187460,3.76862,2653.5,2652.9,2.2608]
[1724153187629,7.53731,2653.5,2652.9,3.971788]
[1724153187861,7.53686,2653.7,2652.9,38.971788]
[1724153188160,3.76847,2653.6,2652.9,38.971788]
[1724153188397,7.53686,2653.7,2652.9,38.971788]
[1724153188703,3.76846,2653.6,2652.9,38.971788]
[1724153188853,3.76846,2653.6,2653.0,3.73531554]
[1724153189055,3.76846,2653.6,2652.9,3.971788]
[1724153189797,3.76846,2653.6,2653.0,2.3039]
[1724153190680,3.7682,2653.8,2653.0,6.07314]
[1724153190980,6.76834,2653.7,2653.1,2.3383]
[1724153191282,6.76834,2653.7,2653.1,1.522657]
[1724153191482,3.76806,2653.9,2653.1,4.4694355]
[1724153192091,3.7682,2653.8,2653.1,0.7002955]
[1724153192402,3.76806,2653.9,2653.1,0.7002955]
[1724153192626,7.53568,2654.1,2653.2,38.76889]
[1724153192922,3.76789,2654.0,2653.2,42.53784]
[1724153193220,3.76779,2654.1,2653.3,7.50416554]
[1724153193582,3.76779,2654.1,2653.3,3.76885]
[1724153193782,3.76779,2654.1,2653.4,35.0]
[1724153194232,3.76779,2654.1,2653.5,2.3411]
[1724153194397,3.76757,2654.3,2653.5,2.3411]
[1724153194597,7.53516,2654.3,2653.5,2.3411]
[1724153194934,3.76757,2654.3,2653.6,6.04711554]
[1724153195082,3.76757,2654.3,2653.7,2.3118]
[1724153195294,3.76733,2654.4,2653.7,2.3118]
[1724153195493,3.76748,2654.3,2653.7,2.3118]
[1724153195713,3.76748,2654.3,2653.7,3.29335855]
[1724153196317,3.76764,2654.2,2653.7,3.29335855]
[1724153197229,3.76784,2654.1,2653.7,2.3118]
[1724153198001,3.76804,2653.9,2653.7,2.3118]
[1724153198751,3.76784,2654.1,2653.7,2.3118]
[1724153199259,3.76752,2654.3,2653.7,2.3118]
[1724153199813,7.53507,2654.3,2653.7,2.3118]
[1724153200207,3.76752,2654.3,2653.7,2.3118]
[1724153201034,3.76752,2654.3,2653.8,2.3887]
[1724153201253,3.76728,2654.5,2653.9,2.3887]
[1724153201413,7.53454,2654.5,2653.9,2.3887]
[1724153201744,3.76756,2654.3,2653.9,2.3887]
[1724153201897,3.76799,2654.0,2653.6,2.326]
[1724153202750,3.76798,2654.0,2653.6,2.326]
[1724153203013,3.76791,2654.0,2653.6,2.326]
[1724153203302,7.53589,2654.0,2653.6,2.326]
[1724153203657,3.76791,2654.0,2653.5,2.3206]
[1724153204008,3.76819,2653.8,2653.5,2.3206]
[1724153204149,3.76791,2654.0,2653.5,2.3206]
[1724153204859,3.76778,2654.1,2653.5,2.3206]
[1724153207273,3.76761,2654.2,2653.5,2.3206]
[1724153207589,3.76748,2654.3,2653.6,2.2633]
[1724153207894,3.76748,2654.3,2653.7,0.603187]
[1724153208072,7.53504,2654.3,2653.7,0.603187]
[1724153208408,3.76748,2654.3,2653.7,0.603187]
[1724153208574,7.53505,2654.3,2653.7,0.603187]
[1724153208773,3.76763,2654.2,2653.7,0.603187]
[1724153209082,3.76763,2654.2,2653.8,2.2573]
[1724153209478,3.76748,2654.3,2653.8,2.2573]
[1724153209706,3.7677,2654.2,2653.8,2.2573]
[1724153210769,3.76748,2654.3,2653.8,2.2573]
[1724153211369,7.53505,2654.3,2653.8,2.2573]
[1724153211602,3.76748,2654.3,2653.8,2.2573]
[1724153211780,3.76769,2654.2,2653.8,2.2573]
[1724153211980,4.144228,2654.3,2653.8,2.2573]
[1724153212210,7.911788,2654.3,2653.8,2.2573]
[1724153212406,3.76762,2654.2,2653.8,2.2573]
[1724153212775,3.76748,2654.3,2653.8,2.2573]
[1724153213185,3.76739,2654.4,2653.8,2.48303]
[1724153213707,3.76773,2654.2,2653.8,2.2573]
[1724153213907,3.76776,2654.1,2653.8,2.2573]
[1724153214267,7.53507,2654.3,2653.8,2.2573]
[1724153214708,3.7677,2654.2,2653.8,2.2573]
[1724153214903,7.53507,2654.3,2653.8,2.2573]
[1724153215320,3.76763,2654.2,2653.8,2.2573]
[1724153217862,2.341,2654.6,2653.5,9.6063]
[1724153218019,3.76782,2654.1,2653.5,9.6063]
[1724153218311,3.76782,2654.1,2653.6,35.0]
[1724153218611,3.76782,2654.1,2653.6,38.73531554]
[1724153218834,12.9471,2654.6,2653.5,9.6063]
[1724153218997,3.76812,2653.9,2653.5,9.6063]
[1724153219184,7.53625,2653.9,2653.5,9.6063]
[1724153219589,3.76812,2653.9,2653.5,9.6063]
[1724153220117,3.76782,2654.1,2653.5,9.6063]
[1724153220303,4.144602,2654.1,2653.5,9.6063]
[1724153220508,2.4416,2654.0,2653.1,42.31]
[1724153220817,3.76856,2653.6,2653.2,2.3062]
[1724153222393,3.76834,2653.7,2653.2,2.3062]
[1724153222992,3.76825,2653.8,2653.2,6.04151554]
[1724153223593,2.2646,2653.7,2653.0,2.3039]
[1724153223798,7.53827,2653.2,2653.0,2.3039]
[1724153224009,7.53823,2653.2,2653.0,2.3039]
[1724153224185,3.76911,2653.2,2653.0,2.3039]
[1724153227125,3.76883,2653.4,2653.0,2.3039]
[1724153229321,3.76904,2653.2,2653.0,2.3039]
[1724153229828,3.76883,2653.4,2653.0,2.3039]
[1724153229829,3.76889,2653.3,2653.0,2.3039]
[1724153230030,3.76883,2653.4,2653.0,2.3039]
[1724153230469,7.5377,2653.4,2653.0,2.53429]
[1724153230618,7.5377,2653.4,2653.0,2.3039]
[1724153230815,3.76883,2653.4,2653.0,37.3039]
[1724153231535,8.33592429,2653.8,2653.0,2.3039]
[1724153231820,3.76825,2653.8,2653.1,2.4804]
[1724153232058,3.76825,2653.8,2653.2,1.001888]
[1724153232517,3.76804,2653.9,2653.3,2.2713]
[1724153233630,1.56763429,2654.2,2653.3,2.2713]
[1724153233829,3.76768,2654.2,2653.4,6.10183]
[1724153234091,3.76768,2654.2,2653.6,2.3331]
[1724153234945,3.76742,2654.4,2653.6,2.3331]
[1724153235145,3.76742,2654.4,2653.7,2.2773]
[1724153235574,3.76742,2654.4,2653.9,2.3707]
[1724153235794,3.76711,2654.6,2653.9,2.3707]
[1724153236010,3.76711,2654.6,2653.8,35.0]
[1724153236011,1.56763429,2655.0,2654.1,2.4737]
[1724153236302,3.76656,2655.0,2654.1,3.76774]
[1724153236498,3.76656,2655.0,2654.2,2.54904248]
[1724153236701,3.76656,2655.0,2654.1,3.76774]
[1724153236702,3.76656,2655.0,2654.3,2.54903993]
[1724153236859,5.72806318,2655.2,2654.5,2.4737]
[1724153236860,3.76644,2655.1,2654.5,2.4737]
[1724153237059,3.82353429,2655.3,2654.5,2.4737]
[1724153237266,3.76641,2655.1,2654.5,2.4737]
[1724153237447,3.7667,2654.9,2654.5,2.4737]
[1724153238149,3.76641,2655.1,2654.5,2.4737]
[1724153239050,3.76641,2655.1,2654.5,2.72107]
[1724153239494,3.76612,2655.3,2654.5,2.72107]
[1724153239662,3.0,2655.2,2654.5,2.72107]
[1724153240001,3.7657,2655.6,2654.8,3.76675]
[1724153240307,3.76576,2655.5,2654.9,2.4898]
[1724153240472,3.76614,2655.3,2654.9,2.4898]
[1724153240665,3.76578,2655.5,2654.9,2.4898]
[1724153241850,3.76537,2655.8,2655.0,2.3899]
[1724153242093,3.76522,2655.9,2655.2,2.3899]
[1724153243051,3.76514,2656.0,2655.2,3.76615]
[1724153243300,3.76499,2656.1,2655.3,2.4243]
[1724153243508,3.7653,2655.9,2655.4,2.4243]
[1724153243650,3.76486,2656.2,2655.4,2.4243]
[1724153243847,3.76511,2656.0,2655.4,2.4243]
[1724153244053,4.14876,2656.2,2655.4,2.4243]
[1724153244251,4.14876,2656.2,2655.4,2.152208]
[1724153244511,3.76509,2656.0,2655.4,2.152208]
[1724153244664,7.53022,2656.0,2655.4,2.152208]
[1724153244998,3.76509,2656.0,2655.4,2.152208]
[1724153245217,7.52975,2656.2,2655.4,5.88752354]
[1724153245504,3.76518,2656.0,2655.4,5.88752354]
[1724153245711,3.76521,2655.9,2655.4,5.88752354]
[1724153246880,3.76507,2656.0,2655.4,2.152208]
[1724153247523,3.76542,2655.8,2655.4,2.152208]
[1724153248086,3.76469,2656.3,2655.4,2.152208]
[1724153248288,3.0,2656.2,2655.4,2.152208]
[1724153248474,3.7653,2655.9,2655.4,2.152208]
[1724153249952,3.765,2656.1,2655.4,2.152208]
[1724153250208,3.76506,2656.0,2655.4,2.152208]
[1724153250412,3.765,2656.1,2655.4,2.152208]
[1724153251073,7.53003,2656.1,2655.4,2.152208]
[1724153251289,3.76521,2655.9,2655.4,2.012508]
[1724153251495,3.76537,2655.8,2655.4,2.012508]
[1724153252463,3.7655,2655.7,2655.4,2.012508]
[1724153252657,3.76537,2655.8,2655.4,2.012508]
[1724153252658,7.53085,2655.8,2655.4,2.012508]
[1724153253096,7.5308,2655.8,2655.4,2.012508]
[1724153253774,3.76564,2655.6,2655.4,2.012508]
[1724153254016,7.53134,2655.6,2655.2,7.31]
[1724153254312,7.53134,2655.6,2655.1,22.0429]
[1724153254313,3.76615,2655.3,2655.1,22.0429]
[1724153254515,3.76615,2655.3,2655.1,2.2929]
[1724153254687,3.76613,2655.3,2655.1,2.2929]
[1724153255091,4.518834,2655.6,2655.1,2.2929]
[1724153255273,3.7657,2655.6,2655.1,2.2929]
[1724153257621,3.76535,2655.8,2654.9,11.07653]
[1724153257622,2.4455,2655.5,2654.9,7.31]
[1724153257803,3.76627,2655.2,2654.9,7.31]
[1724153258670,3.76599,2655.4,2654.9,7.31]
[1724153259072,3.76624,2655.2,2654.9,7.31]
[1724153260210,3.76605,2655.3,2654.9,7.31]
[1724153260926,3.76592,2655.4,2655.0,2.3487]
[1724153261588,3.76606,2655.3,2655.0,2.3487]
[1724153264359,7.5317,2655.5,2655.0,2.3487]
[1724153264563,3.76581,2655.5,2655.0,2.3487]
[1724153264857,3.76564,2655.6,2655.0,2.58357]
[1724153265528,3.76557,2655.7,2655.1,2.4983]
[1724153266227,3.51557,2655.7,2655.1,2.4983]
[1724153266431,3.51557,2655.7,2655.2,0.649964]
[1724153268268,3.51557,2655.7,2655.3,2.3358]
[1724153268469,10.53059,2655.9,2655.3,2.3358]
[1724153268669,3.76529,2655.9,2655.3,2.3358]
[1724153268868,7.53056,2655.9,2655.4,0.6751884]
[1724153269185,3.76527,2655.9,2655.3,2.3358]
[1724153269540,3.765,2656.1,2655.3,6.10184]
[1724153269735,3.765,2656.1,2655.2,4.416134]
[1724153269736,3.76522,2655.9,2655.4,2.3358]
[1724153269965,3.76535,2655.8,2655.4,2.3358]
[1724153270159,3.76522,2655.9,2655.4,2.3358]
[1724153270361,3.76545,2655.8,2655.4,2.6343764]
[1724153271074,3.76594,2655.4,2655.1,2.3269]
[1724153271973,7.53193,2655.4,2655.1,2.3269]
[1724153272176,3.76594,2655.4,2655.1,2.3269]
[1724153272480,3.76571,2655.6,2655.1,2.3269]
[1724153272778,7.53143,2655.6,2655.1,2.583077]
[1724153273075,3.76576,2655.5,2655.1,2.583077]
[1724153273573,7.53142,2655.6,2655.1,2.583077]
[1724153273872,3.76577,2655.5,2655.1,2.583077]
[1724153274577,3.7656,2655.7,2655.1,2.583077]
[1724153275489,6.2841,2656.4,2655.3,2.2712]
[1724153275638,3.76512,2656.0,2655.3,6.03715]
[1724153275843,3.7652,2655.9,2655.3,2.2712]
[1724153276659,3.76512,2656.0,2655.3,6.03724]
[1724153276660,3.76506,2656.0,2655.3,6.03724]
[1724153276852,3.76506,2656.0,2655.5,2.4802]
[1724153277378,3.76492,2656.1,2655.5,2.4802]
[1724153277583,3.76488,2656.2,2655.5,2.4802]
[1724153277746,3.76488,2656.2,2655.6,0.7226432]
[1724153277946,7.52974,2656.2,2655.6,0.7226432]
[1724153278179,3.76486,2656.2,2655.6,0.7226432]
[1724153279199,3.76486,2656.2,2655.7,2.425]
[1724153279399,3.76486,2656.2,2655.7,3.11633832]
[1724153280632,3.76493,2656.1,2655.7,2.425]
[1724153280774,9.16111618,2656.4,2655.7,2.425]
[1724153280976,3.76458,2656.4,2655.7,2.425]